fUST/lending_fUST_20250925
["ID","MTS","AMOUNT","RATE_DAILY","PERIOD"]
[387506879,1758747056017,-626.69,0.00022191,2]
[387506882,1758747056036,-480.0,0.00022191,2]
[387506886,1758747056057,-774.76,0.00022191,2]
[387506888,1758747056070,-530.62,0.00022191,2]
[387506891,1758747056088,-603.26,0.00022191,2]
[387506894,1758747056103,-480.0,0.00022191,2]
[387506896,1758747056117,-480.0,0.00022191,2]
[387506899,1758747056131,-900.62,0.00022191,2]
[387506901,1758747056145,-480.0,0.00022191,2]
[387506904,1758747056160,-480.0,0.00022191,2]
[387506906,1758747056174,-480.0,0.00022191,2]
[387506909,1758747056187,-480.0,0.00022191,2]
[387506911,1758747056202,-480.0,0.00022191,2]
[387506913,1758747056217,-480.0,0.00022191,2]
[387506914,1758747056231,-480.0,0.00022191,2]
[387506915,1758747056244,-1043.37,0.00022191,2]
[387506916,1758747056258,-480.0,0.00022191,2]
[387506918,1758747056271,-688.05,0.00022191,2]
[387506919,1758747056285,-2070.13,0.00022191,2]
[387506921,1758747056299,-861.47,0.00022191,2]
[387506923,1758747056314,-480.0,0.00022191,2]
[387506924,1758747056327,-480.0,0.00022191,2]
[387506925,1758747056342,-288.44,0.00022395,2]
[387506926,1758747056355,-160.0,0.00022396,2]
[387506927,1758747056369,-532.2324375,0.00022396,2]
[387506928,1758747056383,-160.0,0.00022396,2]
[387506929,1758747056396,-160.0,0.00022396,2]
[387506930,1758747056411,-417.15472785,0.00022396,2]
[387506931,1758747056425,-342.88866682,0.00022465,2]
[387506932,1758747056440,-480.0,0.00022465,2]
[387506933,1758747056459,-480.0,0.00022465,2]
[387506934,1758747056472,-480.0,0.00022465,2]
[387506935,1758747056486,-480.0,0.00022465,2]
[387506936,1758747056500,-693.66,0.00022465,2]
[387506937,1758747056515,-1157.98,0.00022465,2]
[387506938,1758747056529,-692.67,0.00022465,2]
[387506939,1758747056544,-583.87,0.00022465,2]
[387506940,1758747056554,-794.41,0.00022465,2]
[387506941,1758747056637,-480.0,0.00022465,2]
[387506942,1758747056676,-480.0,0.00022465,2]
[387506943,1758747056686,-543.17,0.00022465,2]
[387506944,1758747056695,-712.37,0.00022465,2]
[387506945,1758747056706,-480.0,0.00022465,2]
[387506946,1758747056716,-562.63,0.00022465,2]
[387506947,1758747056726,-610.19,0.00022465,2]
[387506948,1758747056736,-692.37,0.00022465,2]
[387506949,1758747056745,-1028.64,0.00022465,2]
[387506950,1758747056756,-626.69,0.00022465,2]
[387506951,1758747056765,-480.0,0.00022465,2]
[387506952,1758747056776,-774.76,0.00022465,2]
[387506953,1758747056786,-480.0,0.00022465,2]
[387506954,1758747056796,-480.0,0.00022465,2]
[387506955,1758747056805,-900.62,0.00022465,2]
[387506956,1758747056815,-480.0,0.00022465,2]
[387506957,1758747056824,-480.0,0.00022465,2]
[387506958,1758747056834,-476.37145293,0.00022465,2]
[387506959,1758747056844,-480.0,0.00022465,2]
[387506960,1758747056853,-480.0,0.00022465,2]
[387506961,1758747056863,-469.53,0.00022465,2]
[387506962,1758747056872,-1043.37,0.00022465,2]
[387506963,1758747056882,-480.0,0.00022465,2]
[387506964,1758747056891,-688.05,0.00022465,2]
[387506965,1758747056901,-2070.13,0.00022465,2]
[387506966,1758747056910,-861.47,0.00022465,2]
[387506967,1758747056920,-480.0,0.00022465,2]
[387506968,1758747056929,-480.0,0.00022465,2]
[387506969,1758747056938,-154.69059549,0.00022466,2]
[387506970,1758747056948,-1810.91434629,0.00022712,2]
[387506971,1758747056957,-480.0,0.00022739,2]
[387506972,1758747056967,-480.0,0.00022739,2]
[387506973,1758747056977,-480.0,0.00022739,2]
[387506974,1758747056986,-275.47,0.00022739,2]
[387506975,1758747056995,-693.66,0.00022739,2]
[387506976,1758747057005,-1157.98,0.00022739,2]
[387506977,1758747057015,-692.67,0.00022739,2]
[387506978,1758747057024,-583.87,0.00022739,2]
[387506979,1758747057034,-794.41,0.00022739,2]
[387506980,1758747057044,-480.0,0.00022739,2]
[387506981,1758747057055,-486.88,0.00022739,2]
[387506982,1758747057065,-543.17,0.00022739,2]
[387506983,1758747057074,-712.37,0.00022739,2]
[387506984,1758747057084,-480.0,0.00022739,2]
[387506985,1758747057094,-562.63,0.00022739,2]
[387506986,1758747057103,-610.19,0.00022739,2]
[387506987,1758747057113,-692.37,0.00022739,2]
[387506988,1758747057123,-1028.64,0.00022739,2]
[387506989,1758747057132,-626.69,0.00022739,2]
[387506990,1758747057141,-480.0,0.00022739,2]
[387506991,1758747057151,-774.76,0.00022739,2]
[387506992,1758747057160,-281.14222353,0.00022739,2]
[387506993,1758747057170,-480.0,0.00022739,2]
[387506994,1758747057179,-900.62,0.00022739,2]
[387506995,1758747057189,-203.65,0.00022739,2]
[387506996,1758747057198,-485.21466763,0.00022739,2]
[387506997,1758747057207,-480.0,0.00022739,2]
[387506998,1758747057216,-480.0,0.00022739,2]
[387506999,1758747057225,-480.0,0.00022739,2]
[387507000,1758747057235,-1043.37,0.00022739,2]
[387507001,1758747057244,-688.05,0.00022739,2]
[387507002,1758747057253,-2070.13,0.00022739,2]
[387507003,1758747057263,-861.47,0.00022739,2]
[387507004,1758747057272,-480.0,0.00022739,2]
[387507005,1758747057281,-480.0,0.00022739,2]
[387507006,1758747057291,-190.0,0.00022912,2]
[387507007,1758747057300,-160.0,0.00023,2]
[387507008,1758747057310,-480.0,0.00023013,2]
[387507009,1758747057319,-171.13,0.00023013,2]
[387507010,1758747057328,-480.0,0.00023013,2]
[387507011,1758747057337,-693.66,0.00023013,2]
[387507012,1758747057347,-1157.98,0.00023013,2]
[387507013,1758747057356,-692.67,0.00023013,2]
[387507014,1758747057367,-794.41,0.00023013,2]
[387507015,1758747057376,-583.87,0.00023013,2]
[387507016,1758747057386,-480.0,0.00023013,2]
[387507017,1758747057395,-543.17,0.00023013,2]
[387507018,1758747057404,-712.37,0.00023013,2]
[387507019,1758747057415,-480.0,0.00023013,2]
[387507020,1758747057424,-562.63,0.00023013,2]
[387507021,1758747057434,-610.19,0.00023013,2]
[387507022,1758747057443,-692.37,0.00023013,2]
[387507023,1758747057457,-1028.64,0.00023013,2]
[387507024,1758747057466,-626.69,0.00023013,2]
[387507025,1758747057476,-480.0,0.00023013,2]
[387507026,1758747057485,-774.76,0.00023013,2]
[387507027,1758747057496,-480.0,0.00023013,2]
[387507028,1758747057505,-900.62,0.00023013,2]
[387507029,1758747057514,-366.8356138,0.00023013,2]
[387507030,1758747057525,-480.0,0.00023013,2]
[387507031,1758747057535,-480.0,0.00023013,2]
[387507032,1758747057545,-1043.37,0.00023013,2]
[387507033,1758747057554,-688.05,0.00023013,2]
[387507034,1758747057564,-2070.13,0.00023013,2]
[387507035,1758747057574,-861.47,0.00023013,2]
[387507036,1758747057583,-480.0,0.00023013,2]
[387507037,1758747057593,-480.0,0.00023013,2]
[387507038,1758747057602,-186.8,0.00023237,3]
[387507039,1758747057611,-480.0,0.00023287,2]
[387507041,1758747057620,-480.0,0.00023287,2]
[387507043,1758747057630,-739.4,0.00023287,2]
[387507045,1758747057640,-693.66,0.00023287,2]
[387507047,1758747057649,-1157.98,0.00023287,2]
[387507049,1758747057659,-692.67,0.00023287,2]
[387507051,1758747057668,-794.41,0.00023287,2]
[387507053,1758747057677,-583.87,0.00023287,2]
[387507055,1758747057686,-480.0,0.00023287,2]
[387507057,1758747057696,-543.17,0.00023287,2]
[387507059,1758747057705,-712.37,0.00023287,2]
[387507061,1758747057714,-480.0,0.00023287,2]
[387507063,1758747057724,-562.63,0.00023287,2]
[387507065,1758747057733,-610.19,0.00023287,2]
[387507067,1758747057743,-692.37,0.00023287,2]
[387507069,1758747057753,-480.0,0.00023287,2]
[387507071,1758747057764,-1028.64,0.00023287,2]
[387507073,1758747057774,-626.69,0.00023287,2]
[387507075,1758747057783,-480.0,0.00023287,2]
[387507076,1758747057793,-774.76,0.00023287,2]
[387507078,1758747057802,-480.0,0.00023287,2]
[387507079,1758747057812,-900.62,0.00023287,2]
[387507080,1758747057821,-480.0,0.00023287,2]
[387507082,1758747057830,-480.0,0.00023287,2]
[387507084,1758747057839,-1043.37,0.00023287,2]
[387507086,1758747057849,-688.05,0.00023287,2]
[387507088,1758747057858,-2070.13,0.00023287,2]
[387507090,1758747057867,-861.47,0.00023287,2]
[387507092,1758747057877,-480.0,0.00023287,2]
[387507094,1758747057887,-480.0,0.00023287,2]
[387507096,1758747057897,-480.0,0.00023561,2]
[387507099,1758747057906,-480.0,0.00023561,2]
[387507101,1758747057916,-693.66,0.00023561,2]
[387507103,1758747057925,-1157.98,0.00023561,2]
[387507104,1758747057935,-692.67,0.00023561,2]
[387507107,1758747057944,-794.41,0.00023561,2]
[387507108,1758747057954,-583.87,0.00023561,2]
[387507111,1758747057963,-480.0,0.00023561,2]
[387507113,1758747057973,-543.17,0.00023561,2]
[387507115,1758747057982,-712.37,0.00023561,2]
[387507117,1758747057991,-340.17603686,0.00023561,2]
[387507119,1758747058001,-562.63,0.00023561,2]
[387507121,1758747058010,-610.19,0.00023561,2]
[387507123,1758747058019,-692.37,0.00023561,2]
[387507125,1758747058028,-1028.64,0.00023561,2]
[387507127,1758747058037,-626.69,0.00023561,2]
[387507129,1758747058047,-280.94,0.00023561,2]
[387507131,1758747058056,-774.76,0.00023561,2]
[387507133,1758747058065,-480.0,0.00023561,2]
[387507135,1758747058074,-900.62,0.00023561,2]
[387507137,1758747058083,-480.0,0.00023561,2]
[387507139,1758747058092,-480.0,0.00023561,2]
[387507141,1758747058102,-1043.37,0.00023561,2]
[387507143,1758747058111,-688.05,0.00023561,2]
[387507145,1758747058120,-2070.13,0.00023561,2]
[387507151,1758747058195,-861.47,0.00023561,2]
[387507152,1758747058205,-480.0,0.00023561,2]
[387507153,1758747058214,-480.0,0.00023561,2]
[387507154,1758747058224,-504.63,0.00023835,2]
[387507155,1758747058233,-480.0,0.00023835,2]
[387507156,1758747058243,-693.66,0.00023835,2]
[387507158,1758747058252,-1157.98,0.00023835,2]
[387507159,1758747058262,-692.67,0.00023835,2]
[387507161,1758747058271,-794.41,0.00023835,2]
[387507163,1758747058281,-583.87,0.00023835,2]
[387507165,1758747058290,-305.59874099,0.00023835,2]
[387507167,1758747058299,-543.17,0.00023835,2]
[387507169,1758747058308,-712.37,0.00023835,2]
[387507171,1758747058317,-562.63,0.00023835,2]
[387507173,1758747058327,-610.19,0.00023835,2]
[387507174,1758747058336,-692.37,0.00023835,2]
[387507177,1758747058346,-1028.64,0.00023835,2]
[387507179,1758747058355,-626.69,0.00023835,2]
[387507181,1758747058364,-774.76,0.00023835,2]
[387507183,1758747058373,-480.0,0.00023835,2]
[387507185,1758747058383,-900.62,0.00023835,2]
[387507186,1758747058392,-276.81,0.00023835,2]
[387507188,1758747058401,-480.0,0.00023835,2]
[387507190,1758747058410,-480.0,0.00023835,2]
[387507192,1758747058421,-1043.37,0.00023835,2]
[387507193,1758747058433,-688.05,0.00023835,2]
[387507195,1758747058443,-2070.13,0.00023835,2]
[387507196,1758747058457,-861.47,0.00023835,2]
[387507197,1758747058466,-480.0,0.00023835,2]
[387507198,1758747058476,-480.0,0.00023835,2]
[387507199,1758747058486,-151.0,0.00024,7]
[387507200,1758747058496,-367.769,0.00024078,5]
[387507201,1758747058506,-480.0,0.00024109,2]
[387507202,1758747058515,-693.66,0.00024109,2]
[387507203,1758747058525,-1157.98,0.00024109,2]
[387507204,1758747058535,-692.67,0.00024109,2]
[387507205,1758747058545,-794.41,0.00024109,2]
[387507206,1758747058555,-583.87,0.00024109,2]
[387507207,1758747058564,-543.17,0.00024109,2]
[387507208,1758747058573,-712.37,0.00024109,2]
[387507209,1758747058582,-562.63,0.00024109,2]
[387507210,1758747058592,-610.19,0.00024109,2]
[387507211,1758747058601,-692.37,0.00024109,2]
[387507212,1758747058611,-1028.64,0.00024109,2]
[387507213,1758747058621,-626.69,0.00024109,2]
[387507214,1758747058630,-774.76,0.00024109,2]
[387507215,1758747058640,-480.0,0.00024109,2]
[387507216,1758747058650,-900.62,0.00024109,2]
[387507217,1758747058660,-259.2784514,0.00024109,2]
[387507218,1758747058669,-610.58274114,0.00024109,2]
[387507219,1758747058679,-1043.37,0.00024109,2]
[387507220,1758747058689,-688.05,0.00024109,2]
[387507221,1758747058698,-2070.13,0.00024109,2]
[387507222,1758747058710,-861.47,0.00024109,2]
[387507223,1758747058720,-480.0,0.00024109,2]
[387507224,1758747058729,-480.0,0.00024109,2]
[387507225,1758747058739,-432.65,0.00024362,2]
[387507226,1758747058749,-480.0,0.00024383,2]
[387507227,1758747058759,-693.66,0.00024383,2]
[387507228,1758747058768,-1157.98,0.00024383,2]
[387507229,1758747058778,-692.67,0.00024383,2]
[387507230,1758747058787,-794.41,0.00024383,2]
[387507231,1758747058797,-583.87,0.00024383,2]
[387507232,1758747058807,-543.17,0.00024383,2]
[387507233,1758747058817,-712.37,0.00024383,2]
[387507234,1758747058826,-562.63,0.00024383,2]
[387507235,1758747058837,-610.19,0.00024383,2]
[387507236,1758747058846,-692.37,0.00024383,2]
[387507237,1758747058856,-1028.64,0.00024383,2]
[387507238,1758747058866,-626.69,0.00024383,2]
[387507239,1758747058877,-774.76,0.00024383,2]
[387507240,1758747058886,-480.0,0.00024383,2]
[387507241,1758747058896,-900.62,0.00024383,2]
[387507242,1758747058905,-1043.37,0.00024383,2]
[387507243,1758747058914,-688.05,0.00024383,2]
[387507244,1758747058924,-2070.13,0.00024383,2]
[387507245,1758747058934,-861.47,0.00024383,2]
[387507246,1758747058943,-182.93859668,0.00024383,2]
[387507247,1758747058953,-480.0,0.00024383,2]
[387507248,1758747058962,-186.8,0.00024557,4]
[387507249,1758747058971,-198.1,0.00024657,2]
[387507250,1758747058981,-693.66,0.00024657,2]
[387507251,1758747058991,-1157.98,0.00024657,2]
[387507252,1758747059001,-692.67,0.00024657,2]
[387507253,1758747059010,-794.41,0.00024657,2]
[387507254,1758747059019,-583.87,0.00024657,2]
[387507255,1758747059029,-543.17,0.00024657,2]
[387507256,1758747059038,-712.37,0.00024657,2]
[387507257,1758747059048,-562.63,0.00024657,2]
[387507258,1758747059058,-610.19,0.00024657,2]
[387507259,1758747059067,-692.37,0.00024657,2]
[387507260,1758747059077,-1028.64,0.00024657,2]
[387507261,1758747059087,-626.69,0.00024657,2]
[387507262,1758747059097,-774.76,0.00024657,2]
[387507263,1758747059106,-480.0,0.00024657,2]
[387507264,1758747059116,-900.62,0.00024657,2]
[387507265,1758747059125,-1043.37,0.00024657,2]
[387507266,1758747059135,-688.05,0.00024657,2]
[387507267,1758747059144,-2070.13,0.00024657,2]
[387507268,1758747059153,-861.47,0.00024657,2]
[387507269,1758747059162,-2856.06926622,0.000248,2]
[387507270,1758747059172,-11896.03092705,0.000248,2]
[387507271,1758747059181,-151.0,0.000249,7]
[387507272,1758747059191,-151.0,0.000249,7]
[387507273,1758747059200,-151.0,0.000249,7]
[387507274,1758747059210,-151.0,0.000249,7]
[387507275,1758747059219,-151.0,0.000249,7]
[387507276,1758747059228,-151.0,0.000249,7]
[387507277,1758747059238,-263.221685,0.000249,7]
[387507278,1758747059247,-151.0,0.000249,7]
[387507279,1758747059257,-151.615843,0.000249,7]
[387507280,1758747059266,-425.684932,0.000249,7]
[387507281,1758747059275,-425.684932,0.000249,7]
[387507282,1758747059285,-425.684932,0.000249,7]
[387507283,1758747059294,-425.684932,0.000249,7]
[387507284,1758747059304,-151.0,0.000249,7]
[387507285,1758747059313,-151.0,0.000249,7]
[387507286,1758747059322,-151.0,0.000249,7]
[387507287,1758747059332,-511324.063558,0.000249,2]
[387507288,1758747059342,-151.0,0.000249,7]
[387507289,1758747059352,-151.0,0.000249,7]
[387507290,1758747059361,-151.0,0.000249,7]
[387507291,1758747059371,-151.0,0.000249,7]
[387507292,1758747059380,-162.042622,0.000249,7]
[387507293,1758747059390,-151.0,0.000249,7]
[387507294,1758747059400,-151.0,0.000249,7]
[387507295,1758747059418,-151.0,0.000249,7]
[387507296,1758747059428,-151.0,0.000249,7]
[387507297,1758747059437,-151.0,0.000249,7]
[387507298,1758747059448,-271.625881,0.000249,7]
[387507299,1758747059459,-271.625881,0.000249,7]
[387507300,1758747059469,-271.625881,0.000249,7]
[387507301,1758747059478,-271.625881,0.000249,7]
[387507302,1758747059488,-151.0,0.000249,7]
[387507303,1758747059499,-151.0,0.000249,7]
[387507304,1758747059509,-151.0,0.000249,7]
[387507305,1758747059519,-151.0,0.000249,7]
[387507306,1758747059530,-151.0,0.000249,7]
[387507307,1758747059541,-347.00435,0.000249,7]
[387507308,1758747059551,-151.0,0.000249,7]
[387507309,1758747059560,-347.00435,0.000249,7]
[387507310,1758747059635,-347.00435,0.000249,7]
[387507311,1758747059645,-347.00435,0.000249,7]
[387507312,1758747059655,-151.0,0.000249,7]
[387507313,1758747059664,-151.0,0.000249,7]
[387507314,1758747059673,-151.0,0.000249,7]
[387507315,1758747059683,-151.0,0.000249,7]
[387507316,1758747059692,-151.0,0.000249,7]
[387507317,1758747059702,-727.107319,0.000249,7]
[387507318,1758747059711,-727.107319,0.000249,7]
[387507319,1758747059721,-151.0,0.000249,7]
[387507320,1758747059731,-727.107319,0.000249,7]
[387507321,1758747059740,-151.0,0.000249,7]
[387507322,1758747059749,-727.107319,0.000249,7]
[387507323,1758747059758,-151.0,0.000249,7]
[387507324,1758747059768,-532.2324375,0.000249,7]
[387507325,1758747059777,-151.0,0.000249,7]
[387507326,1758747059787,-151.0,0.000249,7]
[387507327,1758747059796,-151.0,0.000249,7]
[387507328,1758747059805,-151.0,0.000249,7]
[387507329,1758747059815,-151.0,0.000249,7]
[387507330,1758747059825,-255.324,0.000249,7]
[387507331,1758747059835,-255.324,0.000249,7]
[387507332,1758747059844,-151.0,0.000249,7]
[387507333,1758747059854,-255.324,0.000249,7]
[387507334,1758747059863,-151.0,0.000249,7]
[387507335,1758747059873,-151.0,0.000249,7]
[387507336,1758747059882,-255.324,0.000249,7]
[387507337,1758747059891,-151.0,0.000249,7]
[387507338,1758747059901,-5000.0,0.00024912,2]
[387507339,1758747059911,-693.66,0.00024931,2]
[387507340,1758747059920,-1157.98,0.00024931,2]
[387507341,1758747059929,-692.67,0.00024931,2]
[387507342,1758747059938,-794.41,0.00024931,2]
[387507343,1758747059947,-583.87,0.00024931,2]
[387507344,1758747059956,-543.17,0.00024931,2]
[387507345,1758747059966,-712.37,0.00024931,2]
[387507346,1758747059975,-562.63,0.00024931,2]
[387507347,1758747059983,-610.19,0.00024931,2]
[387507348,1758747059994,-692.37,0.00024931,2]
[387507349,1758747060004,-1028.64,0.00024931,2]
[387507350,1758747060014,-626.69,0.00024931,2]
[387507351,1758747060024,-774.76,0.00024931,2]
[387507352,1758747060033,-555.02,0.00024931,2]
[387507353,1758747060043,-900.62,0.00024931,2]
[387507354,1758747060052,-1043.37,0.00024931,2]
[387507355,1758747060062,-688.05,0.00024931,2]
[387507356,1758747060072,-2070.13,0.00024931,2]
[387507357,1758747060081,-861.47,0.00024931,2]
[387507358,1758747060091,-739.4,0.00025205,4]
[387507359,1758747060099,-693.66,0.00025205,2]
[387507360,1758747060109,-1157.98,0.00025205,2]
[387507361,1758747060118,-692.67,0.00025205,2]
[387507362,1758747060127,-794.41,0.00025205,2]
[387507363,1758747060136,-583.87,0.00025205,2]
[387507364,1758747060143,-543.17,0.00025205,2]
[387507365,1758747060150,-712.37,0.00025205,2]
[387507366,1758747060159,-562.63,0.00025205,2]
[387507367,1758747060167,-610.19,0.00025205,2]
[387507368,1758747060175,-692.37,0.00025205,2]
[387507369,1758747060183,-1028.64,0.00025205,2]
[387507370,1758747060194,-626.69,0.00025205,2]
[387507371,1758747060204,-774.76,0.00025205,2]
[387507372,1758747060214,-900.62,0.00025205,2]
[387507373,1758747060223,-1043.37,0.00025205,2]
[387507374,1758747060233,-688.05,0.00025205,2]
[387507375,1758747060242,-2070.13,0.00025205,2]
[387507376,1758747060252,-861.47,0.00025205,2]
[387507377,1758747060262,-250.0,0.00025317,2]
[387507378,1758747060272,-693.67,0.00025479,2]
[387507379,1758747060281,-1158.15447017,0.00025479,2]
[387507380,1758747060291,-692.70280255,0.00025479,2]
[387507381,1758747060301,-794.49396645,0.00025479,2]
[387507382,1758747060311,-583.92,0.00025479,2]
[387507383,1758747060320,-543.2,0.00025479,2]
[387507384,1758747060330,-712.59787635,0.00025479,2]
[387507385,1758747060339,-562.81089333,0.00025479,2]
[387507386,1758747060349,-610.36795393,0.00025479,2]
[387507387,1758747060358,-692.51,0.00025479,2]
[387507388,1758747060368,-1028.8,0.00025479,2]
[387507389,1758747060378,-626.84,0.00025479,2]
[387507390,1758747060387,-774.92813506,0.00025479,2]
[387507391,1758747060397,-900.64,0.00025479,2]
[387507392,1758747060406,-688.11,0.00025479,2]
[387507393,1758747060416,-1043.39892972,0.00025479,2]
[387507394,1758747060426,-2070.18008984,0.00025479,2]
[387507395,1758747060435,-861.49,0.00025479,2]
[387507396,1758747060444,-3206.35,0.000255,2]
[387507397,1758747060456,-186.8,0.00025878,5]
[387507398,1758747060467,-576.87,0.00026236,2]
[387507399,1758747060477,-151.0,0.000266,16]
[387507400,1758747060486,-150.01,0.00026672,7]
[387507401,1758747060495,-150.01,0.00026772,7]
[387507402,1758747060507,-155.0,0.00026848,2]
[387507403,1758747060517,-151.0,0.00026872,7]
[387507404,1758747060526,-176.388323,0.00026872,7]
[387507405,1758747060537,-151.0,0.00026872,7]
[387507406,1758747060547,-151.0,0.00026872,7]
[387507407,1758747060556,-150.01,0.00026872,7]
[387507408,1758747060566,-150.01,0.00026972,7]
[387507409,1758747060576,-150.01,0.00027072,7]
[387507410,1758747060586,-739.4,0.00027123,6]
[387507411,1758747060596,-150.01,0.00027172,7]
[387507412,1758747060605,-186.8,0.00027198,6]
[387507413,1758747060615,-150.01,0.00027272,7]
[387507414,1758747060625,-150.01,0.00027372,7]
[387507415,1758747060635,-500.0,0.00027397,7]
[387507416,1758747060645,-500.0,0.00027397,7]
[387507417,1758747060654,-162.49,0.00027397,7]
[387507418,1758747060663,-150.0,0.00027397,5]
[387507419,1758747060672,-150.01,0.00027472,15]
[387507420,1758747060680,-417.15472785,0.000275,7]
[387507421,1758747060689,-150.01,0.00027572,15]
[387507422,1758747060698,-791.218844,0.00027583,2]
[387507423,1758747060707,-150.01,0.00027672,15]
[387507424,1758747060716,-150.01,0.00027772,15]
[387507425,1758747060726,-154.0,0.000278,120]
[387507426,1758747060735,-150.01,0.00027872,15]
[387507427,1758747060745,-250.0,0.00027945,5]
[387507428,1758747060754,-150.01,0.00027972,15]
[387507429,1758747060763,-150.01,0.00028072,15]
[387507430,1758747060773,-721.09,0.0002811,2]
[387507431,1758747060783,-150.01,0.00028172,15]
[387507432,1758747060793,-199.0,0.00028219,14]
[387507433,1758747060802,-150.01,0.00028272,15]
[387507434,1758747060811,-3206.35,0.000283,2]
[387507435,1758747060821,-173.0,0.00028334,7]
[387507436,1758747060830,-150.01,0.00028372,15]
[387507437,1758747060840,-173.0,0.0002841,7]
[387507438,1758747060850,-150.01,0.00028472,15]
[387507439,1758747060926,-2349.47025292,0.00028475,9]
[387507440,1758747060936,-350.0,0.00028493,5]
[387507441,1758747060946,-186.8,0.00028518,7]
[387507442,1758747060955,-173.0,0.00028559,7]
[387507443,1758747060965,-150.01,0.00028572,15]
[387507444,1758747060974,-173.0,0.00028627,2]
[387507445,1758747060983,-150.01,0.00028672,15]
[387507446,1758747060993,-150.01,0.00028772,15]
[387507447,1758747061003,-173.0,0.00028784,2]
[387507448,1758747061013,-173.0,0.00028843,2]
[387507449,1758747061023,-150.01,0.00028872,15]
[387507450,1758747061033,-199.0,0.00028904,15]
[387507451,1758747061042,-173.0,0.00028926,2]
[387507452,1758747061051,-150.01,0.00028972,15]
[387507453,1758747061061,-739.4,0.00029041,8]
[387507454,1758747061070,-450.0,0.00029041,5]
[387507455,1758747061080,-150.01,0.00029072,15]
[387507456,1758747061090,-150.24370891,0.00029172,15]
[387507457,1758747061099,-151.0,0.000292,20]
[387507458,1758747061109,-605.27373208,0.00029255,22]
[387507459,1758747061118,-173.0,0.0002928,2]
[387507460,1758747061127,-173.0,0.00029282,2]
[387507461,1758747061137,-192.02965502,0.00029347,2]
[387507462,1758747061147,-767.35050147,0.00029347,2]
[387507463,1758747061157,-175.0,0.00029352,7]
[387507464,1758747061166,-173.0,0.00029371,2]
[387507465,1758747061176,-2000.0,0.000294,2]
[387507466,1758747061185,-742.4,0.000294,2]
[387507467,1758747061195,-150.0,0.00029402,2]
[387507468,1758747061204,-2000.0,0.00029402,30]
[387507469,1758747061214,-2000.0,0.00029402,30]
[387507470,1758747061223,-1080.8,0.00029402,30]
[387507471,1758747061233,-250.0,0.00029402,10]
[387507472,1758747061243,-250.0,0.00029402,10]
[387507473,1758747061252,-250.0,0.00029402,10]
[387507474,1758747061262,-346.175394,0.00029402,10]
[387507475,1758747061271,-1574.140623,0.000295,2]
[387507476,1758747061280,-500.0,0.00029514,2]
[387507477,1758747061290,-2349.47025292,0.00029547,12]